Cogmind - Beta 14 @@@ ROGUE MODE // 2024.09.12 @ 07:06:06 Player: J1ang-5h1 Result: Destroyed by D-53 Grenadier with Mini Grenade Launcher Performance ------------- Evolutions (0) 0 Regions Visited (3) 600 Robots Destroyed (33) 165 Value Destroyed (686) 686 Prototype IDs (3) 60 Alien Tech Used (0) 0 Bonus (45) 45 TOTAL SCORE: 1556 Bonus ------- Follower Combat Kills 45 Cogmind --------- Core Integrity 0/250 Matter 300/300 Energy 100/100 System Corruption 1% Temperature Cool (0) Movement Treading (340) Ox2 Location -8/Recycling Parts ------- > --- POWER (1) -------- (None) > --- PROPULSION (2) --- Light Treads Spiked Treads > --- UTILITY (2) ------ Huge Storage Unit Makeshift Light Armor Plating > --- WEAPON (2) ------- Subdweller Beam Cannon Heavy Assault Rifle > --- INVENTORY (25) --- Subdweller Power Source Subdweller Power Source Light Treads Wheel Subdweller Monowheel Subdweller Monowheel Subdweller Monowheel Disposable Heat Sink Large Storage Unit High-capacity Battery (250) High-capacity Matter Pod (200) Subdweller Optics Signal Interpreter Improved Terrain Scanner Seismic Detector Recoil Stabilizer ECM Suite Tractor Beam Subdweller Laser Subdweller Laser Subdweller Laser Battle Rifle Subdweller Machine Gun Grenade Launcher Mining Laser Peak State ------------ > --- POWER ------------ Subdweller Power Source > --- PROPULSION ------- Light Treads Spiked Treads > --- UTILITY ---------- Huge Storage Unit Makeshift Light Armor Plating > --- WEAPON ----------- Subdweller Laser Subdweller Beam Cannon > --- INVENTORY -------- Subdweller Power Source Subdweller Power Source Light Treads Wheel Subdweller Monowheel Subdweller Monowheel Subdweller Monowheel Disposable Heat Sink Large Storage Unit High-capacity Battery High-capacity Matter Pod Subdweller Optics Signal Interpreter Improved Terrain Scanner Seismic Detector Recoil Stabilizer ECM Suite Tractor Beam Subdweller Laser Subdweller Laser Heavy Assault Rifle Battle Rifle Subdweller Machine Gun Grenade Launcher Mining Laser [Rating: 18] Favorites ----------- Power Subdweller Power Source Engine Subdweller Power Source Propulsion Light Treads Treads Light Treads Leg Aluminum Leg Utility Large Storage Unit Device Seismic Detector Storage Large Storage Unit Protection Makeshift Light Armor Plating Weapon Assault Rifle Energy Gun Subdweller Laser Energy Cannon Subdweller Beam Cannon Ballistic Gun Assault Rifle Launcher Grenade Launcher Special Weapon Mining Laser Build | -11 -10 -10 -8 ------- Run | Yrd Mat Sub Rec Slots Evolved . | . . . . Power . | . . . . Propulsion . | . . . . Utility . | . . . . Weapon . | . . . . Parts Attached 37 | . 12 23 2 Power 5 | . 1 4 . Engine 5 | . 1 4 . Core . | . . . . Reactor . | . . . . Propulsion 4 | . 3 1 . Treads 3 | . 2 1 . Leg 1 | . 1 . . Wheel . | . . . . Hover . | . . . . Flight . | . . . . Utility 10 | . 1 9 . Device 7 | . . 7 . Storage 2 | . 1 1 . Processor . | . . . . Hackware . | . . . . Protection 1 | . . 1 . Artifact . | . . . . Weapon 18 | . 7 9 2 Energy Gun 1 | . . . 1 Energy Cannon 1 | . . 1 . Ballistic Gun 8 | . 3 4 1 Ballistic Cannon . | . . . . Launcher 5 | . 3 2 . Special Weapon 3 | . 1 2 . Impact Weapon . | . . . . Slashing Weapon . | . . . . Piercing Weapon . | . . . . Special Melee Weapon . | . . . . Unidentified Prototypes . | . . . . Parts Lost 1 | . . . 1 Power 1 | . . . 1 Propulsion . | . . . . Utility . | . . . . Weapon . | . . . . Highest Loss Streak 1 | . . . 1 To Critical Strikes . | . . . . Average Slot Usage (%) 98 | . 99 98 96 Engine 13 | . 14 14 10 Treads 24 | . 19 27 28 Leg 3 | . 8 . . Device 5 | . . 10 . Storage 19 | . 27 14 14 Protection 2 | . . 1 14 Energy Gun 1 | . . . 13 Energy Cannon 1 | . . . 14 Ballistic Gun 21 | . 26 22 . Special Weapon 2 | . . 4 . Peak Build Rating 18 | . 8 17 18 Average Rating 10 | . 7 11 17 On Entrance 9 | 6 6 8 17 Naked Turns . | . . . . Heaviest Build 101 | 14 34 99 101 Greatest Support 40 | 20 40 40 40 Greatest Overweight (x) 4 | . 1 4 2 Average Overweight (x) . | . . . 2 Largest Inventory Capacity 25 | . 15 25 25 Average Capacity 18 | . 14 18 25 Most Carried 25 | . 15 22 25 Average Carried 15 | . 9 16 24 Final Capacity 25 | 8 15 25 25 Final Carried 25 | 6 15 22 25 Class Distribution -------------------- 82% | Mutant 17% | Derelict-Mutant Dominant Class ---------------- Mutant | -10/Materials Mutant | -10/Subcaves Derelict-Mutant | -8/Recycling Resources | -11 -10 -10 -8 ----------- Run | Yrd Mat Sub Rec Matter Collected 1284 | 200 397 582 105 Remotely . | . . . . Salvage Created 1138 | . 454 276 408 Parts 79 | . 42 20 17 Haulers Intercepted 2 | . 2 . . Recyclers Shooed 2 | . 2 . . Parts Field Recycled . | . . . . Retrieved Matter . | . . . . Parts Self-Destructed 7 | . . 7 . Prevented . | . . . . Kills | -11 -10 -10 -8 ------- Run | Yrd Mat Sub Rec Combat Hostiles Destroyed 22 | . 11 7 4 Guns 18 | . 9 7 2 Cannons 2 | . . . 2 AOE 2 | . 2 . . Classes Destroyed 9 | . 7 2 . Builder 1 | . 1 . . Tunneler 1 | . 1 . . Hauler 2 | . 2 . . Recycler 4 | . 1 . 3 Watcher 3 | . 3 . . Swarmer 10 | . 9 . 1 Grunt 2 | . 2 . . Sentry 4 | . . 1 3 Subdweller 6 | . . 6 . Best Kill Streak 4 | . 4 1 3 Combat Bots Only 3 | . 3 1 1 Max Kills in Single Turn 1 | . 1 1 1 Gunslinging . | . . . . Exploded 1 | . 1 . . Melee . | . . . . Uniques/NPCs Destroyed . | . . . . Combat | -11 -10 -10 -8 -------- Run | Yrd Mat Sub Rec Hostile Shots Fired 136 | . 63 45 28 Missed 27 | . 15 8 4 Damage Taken 1485 | . 413 605 467 Core 250 | . 60 120 70 Absorbed by Shields . | . . . . Regen/Repaired (Parts) 87 | . 87 . . Core Remaining (%) 100 | 100 . . . Volleys Fired 118 | . 62 44 12 Largest 2 | . 2 2 2 Hottest 140 | . 100 125 140 Shots Fired 204 | . 114 67 23 Gun 158 | . 104 42 12 Cannon 13 | . . 2 11 Launcher 9 | . 7 2 . Special 24 | . 3 21 . Kinetic 147 | . 104 42 1 Thermal 48 | . 3 23 22 Explosive 9 | . 7 2 . Electromagnetic . | . . . . Robot Hit Streak 21 | . 8 21 3 Robot Miss Streak 4 | . 4 1 3 Penetration Max . | . . . . Secondary Targets 2 | . 2 . . Max Gunslinging Chain 1 | . 1 . . Shots Hit Robots 105 | . 58 37 10 Core Hits 46 | . 26 13 7 Critical Kills . | . . . . Critical Parts Destroyed . | . . . . Critical Strikes 1 | . . 1 . Destroy 1 | . . 1 . Melee Attacks . | . . . . Impact . | . . . . Slashing . | . . . . Piercing . | . . . . Sneak Attacks . | . . . . Combat Hostiles . | . . . . Follow-up Attacks . | . . . . Damage Inflicted 1824 | . 937 622 265 Guns 1408 | . 754 574 80 Cannons 185 | . . . 185 Explosions 174 | . 174 . . Melee . | . . . . Ramming 9 | . 9 . . Kinetic 1347 | . 754 574 19 Thermal 294 | . . 48 246 Explosive 174 | . 174 . . Electromagnetic . | . . . . Impact . | . . . . Slashing . | . . . . Piercing . | . . . . Highest Corruption 1 | . . . 1 Average Corruption 1 | . . . 1 Corruption Purged . | . . . . Corruption Blocked . | . . . . Overload Shots . | . . . . Overflow Damage 15 | . 8 . 7 Projectiles 7 | . . . 7 Explosions 8 | . 8 . . Melee . | . . . . Knockbacks . | . . . . Impact . | . . . . Kinetic . | . . . . Secondary . | . . . . Self-Inflicted Damage . | . . . . Shots . | . . . . Rammed 1 | . 1 . . Targets Rammed 1 | . 1 . . Kicked . | . . . . Crushed . | . . . . Highest Temperature 252 | . 40 . 252 Average Temperature 100 | . 17 . 115 Received Heat Transfer 213 | . 42 126 45 Effects 1 | . . . 1 Interference 1 | . . . 1 Siege Activations . | . . . . Robots Corrupted . | . . . . Combat Hostiles . | . . . . Parts Fried . | . . . . Impact Corruptions . | . . . . Robots Melted . | . . . . Combat Hostiles . | . . . . Parts Melted . | . . . . Heat Transferred 434 | . . 100 334 Parts Sabotaged . | . . . . Parts Stolen . | . . . . Parts Stripped . | . . . . Power Chain Reactions . | . . . . Alert | -11 -10 -10 -8 ------- Run | Yrd Mat Sub Rec Peak Influence 244 | . 244 . 120 Initial 22 | . . . 22 Average 101 | . 117 . 58 Maximum Alert Level 1 | . 1 . . Low Security (%) 88 | . 84 . 100 Level 1 11 | . 15 . . Level 2 . | . . . . Level 3 . | . . . . Level 4 . | . . . . Level 5 . | . . . . High Security . | . . . . Max Security . | . . . . Squads Dispatched 2 | . 2 . . Investigation 1 | . 1 . . Extermination . | . . . . Reinforcement 1 | . 1 . . Assault . | . . . . Garrison . | . . . . Intercept . | . . . . Searches Triggered . | . . . . Construction Impeded . | . . . . Haulers Reinforced . | . . . . Active Scanning Responses . | . . . . Cargo Convoy Interrupts . | . . . . Stealth | -11 -10 -10 -8 --------- Run | Yrd Mat Sub Rec Distress Signals 1 | . 1 . . Communications Jammed . | . . . . Distress Signals . | . . . . Times Spotted 41 | . 23 11 7 Peak Tracking Total 6 | . 5 6 5 Tactical Retreats 4 | . 2 2 . Traps | -11 -10 -10 -8 ------- Run | Yrd Mat Sub Rec Traps Triggered . | . . . . Indirectly . | . . . . Trap Hack Attempts . | . . . . Triggered . | . . . . Disarmed . | . . . . Reprogrammed . | . . . . Reused . | . . . . Traps Extracted . | . . . . Installed . | . . . . Triggered . | . . . . Machines | -11 -10 -10 -8 ---------- Run | Yrd Mat Sub Rec Machines Disabled 1 | . 1 . . Max in Single Turn 1 | . 1 . . Machines Repaired . | . . . . Machines Dismantled . | . . . . Machines Sabotaged . | . . . . Overloaded Fab Kills . | . . . . Hacking | -11 -10 -10 -8 --------- Run | Yrd Mat Sub Rec Machines Accessed 13 | . 9 . 4 Terminals 8 | . 6 . 2 Fabricators . | . . . . Repair Stations 1 | . 1 . . Recycling Units 4 | . 2 . 2 Scanalyzers . | . . . . Garrison Access . | . . . . Total Hacks 49 | . 37 . 12 Successful 30 | . 22 . 8 Failed 18 | . 14 . 4 Catastrophic 1 | . . . 1 Database Lockouts 1 | . 1 . . Manual 31 | . 22 . 9 Terminals 35 | . 29 . 6 Fabricators . | . . . . Repair Stations 3 | . 3 . . Recycling Units 11 | . 5 . 6 Scanalyzers . | . . . . Garrison Access . | . . . . Terminal Hacks 11 | . 11 . . Robot Analysis 3 | . 3 . . Prototype ID Bank 2 | . 2 . . Terminal Index 1 | . 1 . . Locate Traps 2 | . 2 . . Zone Layout 3 | . 3 . . Fabricator Hacks . | . . . . Repair Station Hacks 2 | . 2 . . Scan Component 1 | . 1 . . Repair 1 | . 1 . . Recycling Unit Hacks 4 | . 1 . 3 Report Inventory 3 | . 1 . 2 Retrieve Components 1 | . . . 1 Scanalyzer . | . . . . Garrison Access Hacks . | . . . . Unauthorized Hacks 13 | . 8 . 5 Terminals 10 | . 7 . 3 Botnet 4 | . 2 . 2 Skim 6 | . 5 . 1 Fabricators . | . . . . Repair Stations . | . . . . Recycling Units 3 | . 1 . 2 Tunnel 3 | . 1 . 2 Scanalyzers . | . . . . Garrison Access . | . . . . Data Cores Recovered . | . . . . Used . | . . . . Hacking Detections 13 | . 10 . 3 Full Trace Events 1 | . 1 . . Feedback Events . | . . . . Feedback Blocked . | . . . . Robot Schematics Acquired . | . . . . Robots Built . | . . . . Authchips . | . . . . Time . | . . . . Total Robot Build Rating . | . . . . Part Schematics Acquired . | . . . . Parts Built . | . . . . Authchips . | . . . . Time . | . . . . Total Part Build Rating . | . . . . Parts Repaired 1 | . 1 . . Time 26 | . 26 . . Parts Recycled . | . . . . Recycled Matter . | . . . . Retrieved Matter . | . . . . Retrieved Components 5 | . . . 5 Parts Scanalyzed . | . . . . Part Schematics Acquired . | . . . . Parts Damaged . | . . . . Bothacking | -11 -10 -10 -8 ------------ Run | Yrd Mat Sub Rec Used RIF Installer . | . . . . Robots Hacked . | . . . . Non-combat . | . . . . Combat . | . . . . Robot Hacks Applied . | . . . . Relay Couplers Released . | . . . . Fabnet Peak Effective % . | . . . . Robots Rewired 1 | . . . 1 Allies Hacked . | . . . . Hacks Repelled . | . . . . Allies | -11 -10 -10 -8 -------- Run | Yrd Mat Sub Rec Total Allies 1 | . . . 1 Largest Group 1 | . . . 1 Highest-Rated Group 15 | . . . 15 Highest-Rated Ally 15 | . . . 15 Total Orders . | . . . . Ally Attacks 1 | . . . 1 Total Damage 16 | . . . 16 Kills 1 | . . . 1 Allies Corrupted . | . . . . Allies Melted . | . . . . Intel | -11 -10 -10 -8 ------- Run | Yrd Mat Sub Rec Robot Analysis Total 3 | . 3 . . Derelict Logs Recovered 1 | . . 1 . Drone Launches . | . . . . Drone Recoveries . | . . . . Exploration | -11 -10 -10 -8 ------------- Run | Yrd Mat Sub Rec Turns Passed 4346 | . 1570 2187 589 Spaces Moved 1910 | 1 797 953 159 Core . | . . . . Treads 1689 | . 577 953 159 Legs 221 | 1 220 . . Wheels . | . . . . Hover . | . . . . Flight . | . . . . Fastest Speed 120 | 120 120 160 340 Average Speed 198 | 120 164 203 340 Slowest Speed 480 | 120 190 480 340 Overloaded Moves . | . . . . Propulsion Burnouts . | . . . . Robots Hopped . | . . . . Cave-ins Triggered . | . . . . Exploration Rate (%) 44 | 2 96 48 32 Regions Visited 3 Branch Regions 2 Pre-discovered Areas 5 | . 1 2 2 Known Exits Taken 1 | . 1 . . Unknown Exits Taken 2 | 1 . 1 . Scrap Searched 5 | . . 5 . Spaces Dug 10 | . 4 6 . Terrain Destroyed 70 | . 50 15 5 Melee . | . . . . Projectile 7 | . 1 1 5 AOE 63 | . 49 14 . Terrain Rammed . | . . . . Walls Destroyed . | . . . . Machines Disabled . | . . . . Actions | -11 -10 -10 -8 --------- Run | Yrd Mat Sub Rec Total 2202 | . 927 1092 183 Wait 85 | . 41 44 . Move 1907 | . 796 952 159 Hop . | . . . . Pick Up 31 | . 13 15 3 Fast Attach 5 | . . 5 . Attach 3 | . 1 2 . Detach . | . . . . Swap 29 | . 11 16 2 Drop 16 | . 2 14 . Fire 118 | . 62 44 12 Melee . | . . . . Ram . | . . . . Kick . | . . . . Crush 1 | . 1 . . Escape Stasis . | . . . . Rewire 7 | . . . 7 Trap . | . . . . Miscellaneous . | . . . . Route ------- -11/Scrapyard -10/Materials (discovered 5 exits: *Mat x3 / [*Min] / *Sub) -10/Subcaves -8/Recycling History --------- Turn | Location | Event 1 | -11/Scrapyard | Discovered new exit (range 0) 1 | -11/Scrapyard | Entered Materials 316 | -10/Materials | Build established: Mutant 323 | -10/Materials | Central database locked down 448 | -10/Materials | Discovered new exit (range 7) 709 | -10/Materials | Repaired Assault Rifle 910 | -10/Materials | Identified exit to Materials 910 | -10/Materials | Identified exit to Subcaves 984 | -10/Materials | Learned location of 2 exits from Materials 1038 | -10/Materials | Learned location of 2 exits from Materials 1079 | -10/Materials | Learned location of 2 exits from Mines 1571 | -10/Materials | Entered Subcaves 1572 | -10/Subcaves | Shifting Twisted Machinery released Sub. Laser 1578 | -10/Subcaves | Learned location of Zion (-6) 1578 | -10/Subcaves | Met a Zionite searching for "candidates" 2273 | -10/Subcaves | Shifting Twisted Machinery released Battle Rifle 2427 | -10/Subcaves | Disturbed a concealed Subdweller 2686 | -10/Subcaves | Shifting Twisted Machinery released Sub. Machine Gun 2860 | -10/Subcaves | Core integrity fell below 50% 3734 | -10/Subcaves | Build established: Derelict-Mutant 3750 | -10/Subcaves | Discovered new exit (range 4) 3758 | -10/Subcaves | Entered Recycling 4210 | -8/Recycling | Core integrity fell below 20% 4347 | -8/Recycling | Destroyed by D-53 Grenadier with Mini Grenade Launcher Last Messages --------------- 04307_ S-10 Pest destroyed. 04310_ Destroyed Mni. Grenade Launcher. 04314_ S-10 Pest destroyed. 04315_ Overheating: System interference. 04315_ Hvy. Assault Rifle temporarily disabled. 04323_ Acquired 13 matter. 04333_ The unstable cave ceiling collapses. 04337_ Attempting to rewire Y-45 Defender. 04338_ The unstable cave ceiling collapses. 04338_ Attempting to rewire Y-45 Defender. 04340_ R-06 Scavenger collects Lgt. Assault Rifle. 04341_ Attempting to rewire Y-45 Defender. 04341_ Y-45 Defender rewired. 04342_ The unstable cave ceiling collapses. 04343_ P-60 Hacker destroyed. 04345_ Attempting to rewire I-25 Savior. 04346_ R-06 Scavenger collects Imp. Heat Sink. 04346_ Attempting to rewire I-25 Savior. 04347_ A-02 Transporter destroyed. Map ----- +----------------------------------------------------+ | ?????????????????????????????????????????????? | | ?????????????????????????????????????????????? | | ?????????????????????????????????????????????? | | ?????????????????????????????????????????????? | | ?????????????????????????????????????????????? | | ?????????????????????????????????????????????? | | ?????????????????????????????????????????????? | | ?????????????????????????????????????????????? | | ?????????????????????????????????????????????? | | ?????????????????????????????????????????????? | | ?????????????????????????????????????????????? | | ?????????????????????????????????????????????? | | ?????????????????????????????????????????????? | | ?????????????????????????????????????????????? | | ???????????????? ??????????????????????????? | | ???????????????# ??????????????????????????? | | ???????????????+ ??????????????????????????? | | ???????????????# ??????????????????????????? | | ???????????????# ??????????????????????????? | | ???????????????+ ??????????????????????????? | | ???????????????# ??????????????????????????? | | ???????????????# #?????????????????????????? | | ???????????????# ##????????????????????????? | | ???????????????# %????????????????????????? | | ???????????????# %%########????????????????? | | ??????????# % %# % # @ !#????????????????? | | ??????????# ] + % i #????????????????? | | ???????????????# # # Y ]#????????????????? | | ???????????????# [ % !#????????????????? | | ???????????????# % g#????????????????? | | ???????????????# # r i#????????????????? | | ???????????????# ] #????????????????? | | ???????????????# g% #????????????????? | | ???????????????# # ##% %Y #????????????????? | | ???????????????# ##?#! t= #????????????????? | | #########??????# #??# it #????????????????? | | "T" #??????# #??# Y #????????????????? | | " #??????# #??# Y #????????????????? | | " #??????# #??#k #????????????????? | | " #??????# #??#t [ #????????????????? | | #?????## ########+#????????????????? | | ############### " #??????????????????????? | | ###??????????????????????? | | #######??????????????????? | | % #??????????????????? | | #########+##### ## #??????????????????? | | ???# #?## ##?? #??????????????????? | | ???# """ #??# "#??? #??????????????????? | | ???# """ #?? "#???? #??????????????????? | | ???# """ #?## ##?????#??????????????????? | +----------------------------------------------------+ Best States ------------- Heat Dissipation 25 Coolant Potential 50 Energy Generation 15 Energy Capacity 250 Matter Stores 300 Matter Capacity 300 Sight Range 16 Terrain Scan Density 10 Armor Coverage 100 Evasion (%) 55 Recoil Reduction 2 Item Schematics ----------------- None Robot Schematics ------------------ None Fabricated ------------ Nothing Alien Tech Used ----------------- None Achievements -------------- None Challenges ------------ None Game ------ Seed DeliveryBlastNanovents Manual? 0 Play Time 00:29:58 Cumulative 273.3 hours Start 2024.09.12 @ 06:37:07 End 2024.09.12 @ 07:06:06 Sessions 1 Manual Loads 0 Difficulty Rogue Special Mode None Game No. 204 Rogue 194 Adventurer 0 Explorer 10 Win Type - Total 3 Types 3/0/0/0/0/0/0/0/0 Lore% 69 Gallery% 71 Achievement% 53 Wizard Run 0 Options --------- Layout 2 ASCII 0 Keyboard 0 Movement Arrows Keybinds 1 Fullscreen 1 Font 24/Smallcaps Map View 50x44 Zoom Use 0% Tactical HUD 1 Map Filters NONE Filters NONE Steam 1 RUN: 95d811f7-7eb4-4fd2-a7f1-84498a115e7e